[Event "Early-Titled-Tuesday-Blitz-March-19-2024"]
[Site "Chess.com"]
[Date "2024.03.19"]
[Round "1"]
[White "francyIM"]
[Black "Tol_Tol"]
[Result "1-0"]
[WhiteElo "2831"]
[BlackElo "2454"]
[TimeControl "180+1"]
[EndTime "8:07:45 PDT"]
[Termination "francyIM won on time"]

1. e4 {[%clk 0:02:50.6]} 1... c5 {[%clk 0:02:59.7]} 2. Nf3 {[%clk 0:02:50.7]}
2... Nc6 {[%clk 0:03:00.2]} 3. Bb5 {[%clk 0:02:51]} 3... e6 {[%clk 0:02:59.7]}
4. Bxc6 {[%clk 0:02:50.8]} 4... bxc6 {[%clk 0:03:00.6]} 5. b3 {[%clk 0:02:51.2]}
5... Ne7 {[%clk 0:02:59.9]} 6. Bb2 {[%clk 0:02:49.7]} 6... Ng6 {[%clk
0:03:00.5]} 7. h4 {[%clk 0:02:48.9]} 7... h5 {[%clk 0:02:59.7]} 8. e5 {[%clk
0:02:48.2]} 8... f6 {[%clk 0:02:54.9]} 9. Qe2 {[%clk 0:02:47.8]} 9... Kf7 {[%clk
0:02:54.7]} 10. Na3 {[%clk 0:02:47.1]} 10... d5 {[%clk 0:02:49.2]} 11. exd6
{[%clk 0:02:47]} 11... Nf4 {[%clk 0:02:28.8]} 12. Qf1 {[%clk 0:02:40.1]} 12...
Bxd6 {[%clk 0:02:26.8]} 13. O-O-O {[%clk 0:02:39.7]} 13... e5 {[%clk 0:02:25]}
14. Nc4 {[%clk 0:02:33.1]} 14... Be6 {[%clk 0:02:23.2]} 15. g3 {[%clk
0:02:29.9]} 15... Nd5 {[%clk 0:02:16.8]} 16. Qg2 {[%clk 0:02:25.6]} 16... a5
{[%clk 0:02:09.7]} 17. a4 {[%clk 0:02:25.5]} 17... Nb4 {[%clk 0:02:08.2]} 18. d3
{[%clk 0:02:22.8]} 18... Bd5 {[%clk 0:01:48.7]} 19. Rhe1 {[%clk 0:02:22.1]}
19... Bc7 {[%clk 0:01:43.9]} 20. Re3 {[%clk 0:01:52.7]} 20... Rb8 {[%clk
0:01:40.2]} 21. Qf1 {[%clk 0:01:52.5]} 21... Qd7 {[%clk 0:01:38.3]} 22. Nfd2
{[%clk 0:01:51.9]} 22... g6 {[%clk 0:01:20.5]} 23. Ne4 {[%clk 0:01:49.6]} 23...
Qe7 {[%clk 0:01:14.3]} 24. f4 {[%clk 0:01:46.7]} 24... Bxe4 {[%clk 0:00:58.9]}
25. Rxe4 {[%clk 0:01:45.9]} 25... Kg7 {[%clk 0:00:40.2]} 26. fxe5 {[%clk
0:01:44.8]} 26... f5 {[%clk 0:00:39.4]} 27. e6+ {[%clk 0:01:44.5]} 27... Kh7
{[%clk 0:00:39.5]} 28. Re3 {[%clk 0:01:45]} 28... Nd5 {[%clk 0:00:35.3]} 29. Rf3
{[%clk 0:01:34.6]} 29... Qxe6 {[%clk 0:00:31.7]} 30. Re1 {[%clk 0:01:34.8]}
30... Qf7 {[%clk 0:00:30.9]} 31. Ne5 {[%clk 0:01:20.4]} 31... Bxe5 {[%clk
0:00:28.3]} 32. Bxe5 {[%clk 0:01:20.3]} 32... Rhe8 {[%clk 0:00:29.1]} 33. Bxb8
{[%clk 0:01:20]} 33... Rxb8 {[%clk 0:00:29.4]} 34. Qe2 {[%clk 0:01:17.7]} 34...
Qf6 {[%clk 0:00:27.4]} 35. Qe5 {[%clk 0:01:17.1]} 35... Qf7 {[%clk 0:00:24.3]}
36. Rff1 {[%clk 0:01:13.8]} 36... Rb7 {[%clk 0:00:22.7]} 37. Qe6 {[%clk
0:01:10.1]} 37... Qg7 {[%clk 0:00:22.6]} 38. Qe5 {[%clk 0:01:05.7]} 38... Qf7
{[%clk 0:00:22.2]} 39. Kd2 {[%clk 0:01:00.1]} 39... Re7 {[%clk 0:00:18.8]} 40.
Qd6 {[%clk 0:01:00.4]} 40... Rc7 {[%clk 0:00:16.5]} 41. Qxc5 {[%clk 0:00:58.9]}
41... Qg7 {[%clk 0:00:15.4]} 42. Rf3 {[%clk 0:00:50.2]} 42... Qh6+ {[%clk
0:00:14.6]} 43. Kd1 {[%clk 0:00:50.5]} 43... Rd7 {[%clk 0:00:12.4]} 44. Qxc6
{[%clk 0:00:48.7]} 44... Qg7 {[%clk 0:00:08.3]} 45. Qc5 {[%clk 0:00:47.2]} 45...
Nc3+ {[%clk 0:00:07.8]} 46. Kc1 {[%clk 0:00:43.9]} 46... Na2+ {[%clk 0:00:06.4]}
47. Kd2 {[%clk 0:00:41.7]} 47... Nb4 {[%clk 0:00:04]} 48. Rf4 {[%clk 0:00:39.7]}
48... Rc7 {[%clk 0:00:04]} 49. Qe5 {[%clk 0:00:32.4]} 49... Rxc2+ {[%clk
0:00:03.9]} 50. Kd1 {[%clk 0:00:32.9]} 50... Qd7 {[%clk 0:00:04.1]} 51. Qe7+
{[%clk 0:00:32.7]} 51... Qxe7 {[%clk 0:00:04.7]} 52. Rxe7+ {[%clk 0:00:33.6]}
52... Kh6 {[%clk 0:00:05.4]} 53. Rxb4 {[%clk 0:00:34.5]} 53... axb4 {[%clk
0:00:05.4]} 54. Kxc2 {[%clk 0:00:34.1]} 1-0

[Event "Early-Titled-Tuesday-Blitz-March-19-2024"]
[Site "Chess.com"]
[Date "2024.03.19"]
[Round "1"]
[White "JaackCamel"]
[Black "KChor05"]
[Result "0-1"]
[WhiteElo "2205"]
[BlackElo "2613"]
[TimeControl "180+1"]
[EndTime "8:07:45 PDT"]
[Termination "KChor05 won by checkmate"]

1. d4 {[%clk 0:02:59.7]} 1... Nf6 {[%clk 0:02:59.4]} 2. c4 {[%clk 0:02:59]} 2...
g6 {[%clk 0:02:58.1]} 3. Nc3 {[%clk 0:02:57]} 3... Bg7 {[%clk 0:02:57.7]} 4. e4
{[%clk 0:02:56.5]} 4... d6 {[%clk 0:02:57.2]} 5. Nf3 {[%clk 0:02:56.2]} 5... O-O
{[%clk 0:02:56]} 6. Be2 {[%clk 0:02:56]} 6... e5 {[%clk 0:02:53.5]} 7. Be3
{[%clk 0:02:54.5]} 7... Na6 {[%clk 0:02:42]} 8. d5 {[%clk 0:02:45.5]} 8... Ng4
{[%clk 0:02:30]} 9. Bg5 {[%clk 0:02:44.9]} 9... f6 {[%clk 0:02:12.6]} 10. Bh4
{[%clk 0:02:43.6]} 10... g5 {[%clk 0:02:12.8]} 11. Bg3 {[%clk 0:02:42.9]} 11...
f5 {[%clk 0:02:13.3]} 12. Nd2 {[%clk 0:02:26.1]} 12... Nh6 {[%clk 0:01:51.4]}
13. f3 {[%clk 0:02:24.1]} 13... g4 {[%clk 0:01:46.9]} 14. Qc2 {[%clk 0:01:51.4]}
14... Nb4 {[%clk 0:01:29.4]} 15. Qb3 {[%clk 0:01:49.4]} 15... a5 {[%clk
0:01:29.1]} 16. O-O-O {[%clk 0:01:40.3]} 16... f4 {[%clk 0:01:19]} 17. Bf2
{[%clk 0:01:36.7]} 17... Qg5 {[%clk 0:01:18.3]} 18. Kb1 {[%clk 0:01:21.7]} 18...
Bd7 {[%clk 0:01:17.4]} 19. Rc1 {[%clk 0:01:02.6]} 19... Kh8 {[%clk 0:00:58.7]}
20. c5 {[%clk 0:01:02.4]} 20... g3 {[%clk 0:00:58.4]} 21. Bg1 {[%clk 0:00:54]}
21... dxc5 {[%clk 0:00:46.3]} 22. Bxc5 {[%clk 0:00:39.2]} 22... Rf7 {[%clk
0:00:39.9]} 23. Nc4 {[%clk 0:00:30.6]} 23... Na6 {[%clk 0:00:36]} 24. Bg1 {[%clk
0:00:27.4]} 24... a4 {[%clk 0:00:33]} 25. Qc2 {[%clk 0:00:23.8]} 25... gxh2
{[%clk 0:00:28]} 26. Rxh2 {[%clk 0:00:22.1]} 26... b5 {[%clk 0:00:27.8]} 27. Na5
{[%clk 0:00:17.9]} 27... b4 {[%clk 0:00:23.7]} 28. Nxa4 {[%clk 0:00:15.4]} 28...
Rf6 {[%clk 0:00:20.7]} 29. Nc6 {[%clk 0:00:14.7]} 29... Raf8 {[%clk 0:00:19.3]}
30. Nc5 {[%clk 0:00:13.5]} 30... Nxc5 {[%clk 0:00:19.1]} 31. Bxc5 {[%clk
0:00:13.4]} 31... Re8 {[%clk 0:00:17.9]} 32. Ne7 {[%clk 0:00:13.4]} 32... Nf7
{[%clk 0:00:16]} 33. Rch1 {[%clk 0:00:12.8]} 33... h6 {[%clk 0:00:15.4]} 34. Nf5
{[%clk 0:00:12.1]} 34... Bxf5 {[%clk 0:00:15]} 35. exf5 {[%clk 0:00:12.3]} 35...
Nd6 {[%clk 0:00:15.4]} 36. Bd3 {[%clk 0:00:12.3]} 36... Nxf5 {[%clk 0:00:15.8]}
37. Bxf5 {[%clk 0:00:10.7]} 37... Qxf5 {[%clk 0:00:16.7]} 38. Qxf5 {[%clk
0:00:10.3]} 38... Rxf5 {[%clk 0:00:17.6]} 39. Bxb4 {[%clk 0:00:09.9]} 39... e4
{[%clk 0:00:17.6]} 40. fxe4 {[%clk 0:00:09.4]} 40... Rxe4 {[%clk 0:00:18.5]} 41.
Bc3 {[%clk 0:00:08.8]} 41... Bxc3 {[%clk 0:00:15]} 42. Rxh6+ {[%clk 0:00:08.7]}
42... Kg7 {[%clk 0:00:14.9]} 43. Rh7+ {[%clk 0:00:07.9]} 43... Kf6 {[%clk
0:00:15.1]} 44. bxc3 {[%clk 0:00:06.2]} 44... Rxd5 {[%clk 0:00:15.1]} 45. Rxc7
{[%clk 0:00:05.8]} 45... Rd2 {[%clk 0:00:14.5]} 46. Rh5 {[%clk 0:00:04.5]} 46...
Re1# {[%clk 0:00:13.1]} 0-1

[Event "Early-Titled-Tuesday-Blitz-March-19-2024"]
[Site "Chess.com"]
[Date "2024.03.19"]
[Round "1"]
[White "Kopytkin"]
[Black "bubeliang"]
[Result "0-1"]
[WhiteElo "2436"]
[BlackElo "2802"]
[TimeControl "180+1"]
[EndTime "8:07:47 PDT"]
[Termination "bubeliang won on time"]

1. d4 {[%clk 0:03:00.9]} 1... d5 {[%clk 0:02:58.6]} 2. Bg5 {[%clk 0:03:00.7]}
2... f6 {[%clk 0:02:56.4]} 3. Bf4 {[%clk 0:03:00.7]} 3... c5 {[%clk 0:02:55.2]}
4. e3 {[%clk 0:02:59.4]} 4... Nc6 {[%clk 0:02:55.1]} 5. Nf3 {[%clk 0:02:53.8]}
5... Bg4 {[%clk 0:02:51]} 6. Be2 {[%clk 0:02:48.5]} 6... e6 {[%clk 0:02:45.7]}
7. O-O {[%clk 0:02:45.1]} 7... Bd6 {[%clk 0:02:44.1]} 8. dxc5 {[%clk 0:02:43.3]}
8... Bxc5 {[%clk 0:02:41.5]} 9. h3 {[%clk 0:02:26.6]} 9... Bxf3 {[%clk
0:02:40.6]} 10. Bxf3 {[%clk 0:02:26.3]} 10... Nge7 {[%clk 0:02:40.8]} 11. c4
{[%clk 0:02:25.4]} 11... O-O {[%clk 0:02:34.4]} 12. cxd5 {[%clk 0:02:24.7]}
12... Nxd5 {[%clk 0:02:33.6]} 13. Bxd5 {[%clk 0:02:17.8]} 13... Qxd5 {[%clk
0:02:34.5]} 14. Qxd5 {[%clk 0:02:15.4]} 14... exd5 {[%clk 0:02:35.4]} 15. Nc3
{[%clk 0:02:15.8]} 15... Rfd8 {[%clk 0:02:34.6]} 16. Rfd1 {[%clk 0:02:12.7]}
16... d4 {[%clk 0:02:34.2]} 17. exd4 {[%clk 0:02:12.9]} 17... Bxd4 {[%clk
0:02:34.1]} 18. Rac1 {[%clk 0:02:01.4]} 18... Kf7 {[%clk 0:02:22.4]} 19. Kf1
{[%clk 0:02:00.1]} 19... Bxc3 {[%clk 0:02:17.7]} 20. bxc3 {[%clk 0:01:58.3]}
20... b6 {[%clk 0:02:13.9]} 21. Be3 {[%clk 0:01:40.1]} 21... Na5 {[%clk
0:02:11.9]} 22. Ke2 {[%clk 0:01:22.8]} 22... Nc4 {[%clk 0:02:10.2]} 23. Rd4
{[%clk 0:01:13.4]} 23... Rxd4 {[%clk 0:02:01.8]} 24. Bxd4 {[%clk 0:01:08.8]}
24... b5 {[%clk 0:02:00.7]} 25. Kd3 {[%clk 0:00:56.5]} 25... a6 {[%clk
0:01:59.7]} 26. Re1 {[%clk 0:00:55.3]} 26... Rd8 {[%clk 0:01:54]} 27. f4 {[%clk
0:00:49.9]} 27... f5 {[%clk 0:01:50.1]} 28. Re2 {[%clk 0:00:48.9]} 28... Rd6
{[%clk 0:01:49]} 29. a4 {[%clk 0:00:48.2]} 29... g6 {[%clk 0:01:13.3]} 30. axb5
{[%clk 0:00:47.7]} 30... axb5 {[%clk 0:01:14.2]} 31. Kc2 {[%clk 0:00:44.6]}
31... Re6 {[%clk 0:01:08.7]} 32. Be5 {[%clk 0:00:25.5]} 32... Ra6 {[%clk
0:01:04.4]} 33. Kb3 {[%clk 0:00:24.2]} 33... Ra4 {[%clk 0:01:03]} 34. Bd4 {[%clk
0:00:24.1]} 34... Na5+ {[%clk 0:01:02.8]} 35. Kc2 {[%clk 0:00:23.2]} 35... Ra2+
{[%clk 0:01:01.9]} 36. Kd3 {[%clk 0:00:23.7]} 36... Rxe2 {[%clk 0:01:02.8]} 37.
Kxe2 {[%clk 0:00:24.4]} 37... Ke6 {[%clk 0:01:03.5]} 38. Kd3 {[%clk 0:00:23.7]}
38... Kd5 {[%clk 0:01:03.8]} 39. Bf6 {[%clk 0:00:23.3]} 39... Nc4 {[%clk
0:01:03.8]} 40. Bd4 {[%clk 0:00:19.8]} 40... Nd6 {[%clk 0:01:02.3]} 41. Be5
{[%clk 0:00:19.4]} 41... Ne4 {[%clk 0:01:02.3]} 42. g4 {[%clk 0:00:18.6]} 42...
Nc5+ {[%clk 0:01:01]} 43. Kc2 {[%clk 0:00:16.1]} 43... Kc4 {[%clk 0:01:01.9]}
44. gxf5 {[%clk 0:00:14.9]} 44... gxf5 {[%clk 0:01:02.8]} 45. h4 {[%clk
0:00:15.3]} 45... h5 {[%clk 0:01:01.7]} 46. Bf6 {[%clk 0:00:14.6]} 46... Ne4
{[%clk 0:01:01.9]} 47. Be5 {[%clk 0:00:13.5]} 47... Nc5 {[%clk 0:00:58.3]} 48.
Kd2 {[%clk 0:00:11]} 48... Nd3 {[%clk 0:00:58.6]} 49. Bd6 {[%clk 0:00:10.7]}
49... Nf2 {[%clk 0:00:56]} 50. Be5 {[%clk 0:00:09.5]} 50... Ng4 {[%clk
0:00:48.1]} 51. Ke2 {[%clk 0:00:09]} 51... Nh6 {[%clk 0:00:44.2]} 52. Ke3 {[%clk
0:00:08.4]} 52... Nf7 {[%clk 0:00:43.8]} 53. Bd4 {[%clk 0:00:08]} 53... Nd6
{[%clk 0:00:43.4]} 54. Kd2 {[%clk 0:00:08.9]} 54... b4 {[%clk 0:00:41.2]} 55.
Be5 {[%clk 0:00:08.7]} 55... Ne4+ {[%clk 0:00:40.9]} 56. Kc2 {[%clk 0:00:08.9]}
56... b3+ {[%clk 0:00:39.9]} 57. Kb2 {[%clk 0:00:09.3]} 57... Nc5 {[%clk
0:00:40.1]} 58. Bd4 {[%clk 0:00:09.1]} 58... Na4+ {[%clk 0:00:40.5]} 59. Ka3
{[%clk 0:00:06.6]} 59... Nxc3 {[%clk 0:00:41.4]} 60. Bxc3 {[%clk 0:00:06.9]}
60... Kxc3 {[%clk 0:00:42.3]} 0-1

[Event "Early-Titled-Tuesday-Blitz-March-19-2024"]
[Site "Chess.com"]
[Date "2024.03.19"]
[Round "1"]
[White "InitiatingASC"]
[Black "ChessSwole"]
[Result "0-1"]
[WhiteElo "2352"]
[BlackElo "2703"]
[TimeControl "180+1"]
[EndTime "8:07:47 PDT"]
[Termination "ChessSwole won on time"]

1. d4 {[%clk 0:03:00.9]} 1... Nf6 {[%clk 0:02:58]} 2. c4 {[%clk 0:03:00.1]} 2...
b6 {[%clk 0:02:58.1]} 3. Nc3 {[%clk 0:02:58]} 3... Bb7 {[%clk 0:02:57.1]} 4. Nf3
{[%clk 0:02:56.1]} 4... e6 {[%clk 0:02:55.8]} 5. Bg5 {[%clk 0:02:53.1]} 5... Bb4
{[%clk 0:02:51.5]} 6. e3 {[%clk 0:02:51.9]} 6... h6 {[%clk 0:02:51.3]} 7. Bxf6
{[%clk 0:02:51.1]} 7... Qxf6 {[%clk 0:02:52.2]} 8. Be2 {[%clk 0:02:47.9]} 8...
O-O {[%clk 0:02:50.3]} 9. O-O {[%clk 0:02:47.6]} 9... c5 {[%clk 0:02:45.9]} 10.
Qb3 {[%clk 0:02:43.1]} 10... Nc6 {[%clk 0:02:40.4]} 11. a3 {[%clk 0:02:40]}
11... cxd4 {[%clk 0:02:31.6]} 12. axb4 {[%clk 0:02:24]} 12... dxc3 {[%clk
0:02:30.6]} 13. bxc3 {[%clk 0:02:24.3]} 13... Rfc8 {[%clk 0:02:09]} 14. Rfd1
{[%clk 0:02:23.3]} 14... Rc7 {[%clk 0:02:05.1]} 15. Ra2 {[%clk 0:02:15.8]} 15...
Rac8 {[%clk 0:02:03.9]} 16. Rad2 {[%clk 0:02:02.3]} 16... Qe7 {[%clk 0:01:38.7]}
17. Qa4 {[%clk 0:01:54.8]} 17... a5 {[%clk 0:01:13.8]} 18. c5 {[%clk 0:01:39.9]}
18... bxc5 {[%clk 0:01:10]} 19. b5 {[%clk 0:01:34.5]} 19... Nb8 {[%clk
0:01:07.4]} 20. Qxa5 {[%clk 0:01:20.6]} 20... d5 {[%clk 0:01:00]} 21. Ne5 {[%clk
0:01:13.6]} 21... c4 {[%clk 0:00:57.6]} 22. Rb2 {[%clk 0:00:49.1]} 22... Qd6
{[%clk 0:00:46.3]} 23. Nf3 {[%clk 0:00:42.6]} 23... Qc5 {[%clk 0:00:44.9]} 24.
Ne5 {[%clk 0:00:38.6]} 24... f6 {[%clk 0:00:39.9]} 25. Ng6 {[%clk 0:00:25.4]}
25... Nc6 {[%clk 0:00:35.4]} 26. Qa1 {[%clk 0:00:20.6]} 26... Ra8 {[%clk
0:00:26.4]} 27. Qb1 {[%clk 0:00:20.3]} 27... Na5 {[%clk 0:00:26.5]} 28. Bg4
{[%clk 0:00:20.4]} 28... Qd6 {[%clk 0:00:20.3]} 29. Nf4 {[%clk 0:00:17]} 29...
Re7 {[%clk 0:00:16.4]} 30. Qg6 {[%clk 0:00:13]} 30... Nb3 {[%clk 0:00:12.2]} 31.
Nh5 {[%clk 0:00:13]} 31... Kh8 {[%clk 0:00:09.7]} 32. Nxf6 {[%clk 0:00:12.6]}
32... gxf6 {[%clk 0:00:09.1]} 33. Qxh6+ {[%clk 0:00:12.9]} 33... Kg8 {[%clk
0:00:08.9]} 34. Qxf6 {[%clk 0:00:12.7]} 34... Qd7 {[%clk 0:00:07.4]} 35. Qg6+
{[%clk 0:00:10.3]} 35... Kh8 {[%clk 0:00:07.7]} 36. Qh6+ {[%clk 0:00:05.8]}
36... Rh7 {[%clk 0:00:07.4]} 37. Qf6+ {[%clk 0:00:05.6]} 37... Qg7 {[%clk
0:00:07.3]} 38. Qxe6 {[%clk 0:00:06.1]} 38... Bc8 {[%clk 0:00:07.3]} 39. Qxd5
{[%clk 0:00:04.6]} 39... Bb7 {[%clk 0:00:07.2]} 40. Qe6 {[%clk 0:00:03.5]} 40...
Rg8 {[%clk 0:00:06.7]} 41. h3 {[%clk 0:00:03.4]} 41... Bc8 {[%clk 0:00:06.4]}
42. Qxc4 {[%clk 0:00:02.8]} 42... Bxg4 {[%clk 0:00:06.6]} 43. Qxg4 {[%clk
0:00:02.9]} 43... Qxc3 {[%clk 0:00:05.5]} 44. Rxb3 {[%clk 0:00:02.2]} 44... Qxb3
{[%clk 0:00:04.5]} 45. Qd4+ {[%clk 0:00:02.5]} 45... Rgg7 {[%clk 0:00:04.5]} 46.
Qd8+ {[%clk 0:00:02.2]} 46... Qg8 {[%clk 0:00:05.2]} 0-1

[Event "Early-Titled-Tuesday-Blitz-March-19-2024"]
[Site "Chess.com"]
[Date "2024.03.19"]
[Round "1"]
[White "wannabe2700"]
[Black "ritanovikova"]
[Result "1-0"]
[WhiteElo "2614"]
[BlackElo "2214"]
[TimeControl "180+1"]
[EndTime "8:07:50 PDT"]
[Termination "wannabe2700 won on time"]

1. b3 {[%clk 0:03:00.9]} 1... Nf6 {[%clk 0:02:59.5]} 2. Bb2 {[%clk 0:03:01.8]}
2... g6 {[%clk 0:02:59.6]} 3. Nf3 {[%clk 0:03:01.6]} 3... Bg7 {[%clk 0:03:00.1]}
4. g3 {[%clk 0:03:02.5]} 4... O-O {[%clk 0:03:00.6]} 5. Bg2 {[%clk 0:03:02.8]}
5... d6 {[%clk 0:03:01.2]} 6. d4 {[%clk 0:03:03.2]} 6... Nbd7 {[%clk 0:03:00.1]}
7. O-O {[%clk 0:03:03.5]} 7... Re8 {[%clk 0:03:00.6]} 8. c4 {[%clk 0:03:03.8]}
8... c6 {[%clk 0:02:56.9]} 9. Nc3 {[%clk 0:03:03.9]} 9... Qc7 {[%clk 0:02:56.7]}
10. Qc2 {[%clk 0:03:01.5]} 10... e5 {[%clk 0:02:55.8]} 11. dxe5 {[%clk
0:03:02.4]} 11... dxe5 {[%clk 0:02:56]} 12. e3 {[%clk 0:03:01.7]} 12... a5
{[%clk 0:02:52.7]} 13. Rfd1 {[%clk 0:02:58.3]} 13... h6 {[%clk 0:02:46.7]} 14.
Ba3 {[%clk 0:02:48.4]} 14... b6 {[%clk 0:02:22.9]} 15. Nd2 {[%clk 0:02:45.8]}
15... Bb7 {[%clk 0:02:20.5]} 16. Nde4 {[%clk 0:02:42.3]} 16... Nxe4 {[%clk
0:02:18.1]} 17. Nxe4 {[%clk 0:02:43.2]} 17... Nf6 {[%clk 0:02:14]} 18. Nd6
{[%clk 0:02:34.9]} 18... Red8 {[%clk 0:02:13.1]} 19. c5 {[%clk 0:02:32.2]} 19...
b5 {[%clk 0:02:09.9]} 20. Rd2 {[%clk 0:02:21.5]} 20... Ne8 {[%clk 0:01:59.3]}
21. Rad1 {[%clk 0:02:13.4]} 21... Nxd6 {[%clk 0:01:58.3]} 22. cxd6 {[%clk
0:02:12.4]} 22... Qd7 {[%clk 0:01:53.7]} 23. Bc5 {[%clk 0:02:03.2]} 23... Qe6
{[%clk 0:01:46.9]} 24. a4 {[%clk 0:02:02.8]} 24... Rd7 {[%clk 0:01:43.4]} 25.
Bb6 {[%clk 0:01:59.7]} 25... b4 {[%clk 0:01:40.2]} 26. Bc7 {[%clk 0:01:35.2]}
26... Ra6 {[%clk 0:01:17.2]} 27. Bf1 {[%clk 0:01:27.7]} 27... Ra8 {[%clk
0:01:16.6]} 28. Bc4 {[%clk 0:00:34.4]} 28... Qh3 {[%clk 0:01:15.8]} 29. Qe4
{[%clk 0:00:34]} 29... Kh7 {[%clk 0:01:04.7]} 30. Bb5 {[%clk 0:00:34]} 30... f5
{[%clk 0:00:54.6]} 31. Qh1 {[%clk 0:00:34.1]} 31... cxb5 {[%clk 0:00:36.5]} 32.
Qxb7 {[%clk 0:00:33.5]} 32... Rf8 {[%clk 0:00:30.4]} 33. axb5 {[%clk 0:00:32.9]}
33... f4 {[%clk 0:00:29.4]} 34. Qg2 {[%clk 0:00:32.8]} 34... Qh5 {[%clk
0:00:28.1]} 35. b6 {[%clk 0:00:28.4]} 35... f3 {[%clk 0:00:26.9]} 36. Qf1 {[%clk
0:00:28.7]} 36... e4 {[%clk 0:00:07.3]} 37. Rd5 {[%clk 0:00:24.7]} 37... g5
{[%clk 0:00:07]} 38. b7 {[%clk 0:00:24.7]} 38... Qg6 {[%clk 0:00:04.9]} 39. b8=Q
{[%clk 0:00:24.8]} 39... Rxb8 {[%clk 0:00:05.7]} 40. Bxb8 {[%clk 0:00:25.7]}
40... h5 {[%clk 0:00:04.7]} 41. Rxa5 {[%clk 0:00:25.1]} 41... h4 {[%clk
0:00:04.5]} 42. Qh3 {[%clk 0:00:23.3]} 42... Bf6 {[%clk 0:00:02.6]} 43. Qf5
{[%clk 0:00:23.4]} 43... Kh6 {[%clk 0:00:03.5]} 44. Qxd7 {[%clk 0:00:23.2]}
44... hxg3 {[%clk 0:00:03.1]} 45. Qh3+ {[%clk 0:00:20.5]} 45... Kg7 {[%clk
0:00:02.5]} 46. hxg3 {[%clk 0:00:18.7]} 46... g4 {[%clk 0:00:02.6]} 47. Qh5
{[%clk 0:00:18.9]} 1-0

[Event "Early-Titled-Tuesday-Blitz-March-19-2024"]
[Site "Chess.com"]
[Date "2024.03.19"]
[Round "1"]
[White "MightyGMpretender"]
[Black "Vse_po_kaify"]
[Result "1-0"]
[WhiteElo "2802"]
[BlackElo "2439"]
[TimeControl "180+1"]
[EndTime "8:07:51 PDT"]
[Termination "MightyGMpretender won by checkmate"]

1. e4 {[%clk 0:03:00.9]} 1... e5 {[%clk 0:02:50.1]} 2. Nc3 {[%clk 0:03:00.4]}
2... Nf6 {[%clk 0:02:49.2]} 3. d3 {[%clk 0:02:55.5]} 3... d5 {[%clk 0:02:49.1]}
4. Bg5 {[%clk 0:02:48.1]} 4... dxe4 {[%clk 0:02:41.7]} 5. dxe4 {[%clk 0:02:46]}
5... Qxd1+ {[%clk 0:02:41.6]} 6. Rxd1 {[%clk 0:02:46.4]} 6... c6 {[%clk
0:02:41.7]} 7. Bc4 {[%clk 0:02:42.6]} 7... Bb4 {[%clk 0:02:37.4]} 8. Ne2 {[%clk
0:02:34.9]} 8... Nbd7 {[%clk 0:02:32.1]} 9. O-O {[%clk 0:02:29.1]} 9... Nc5
{[%clk 0:02:26]} 10. f4 {[%clk 0:02:20.7]} 10... Be6 {[%clk 0:02:09.9]} 11. Bxe6
{[%clk 0:01:53.9]} 11... Nxe6 {[%clk 0:02:09.6]} 12. Bxf6 {[%clk 0:01:54.4]}
12... gxf6 {[%clk 0:02:09.7]} 13. g3 {[%clk 0:01:45.4]} 13... Ke7 {[%clk
0:02:01.1]} 14. Kg2 {[%clk 0:01:42.6]} 14... Rad8 {[%clk 0:02:00.1]} 15. f5
{[%clk 0:01:32.1]} 15... Bxc3 {[%clk 0:01:49.4]} 16. fxe6 {[%clk 0:01:20.9]}
16... Bxb2 {[%clk 0:01:38.4]} 17. exf7 {[%clk 0:01:09.5]} 17... b6 {[%clk
0:01:20.1]} 18. g4 {[%clk 0:01:05.5]} 18... h6 {[%clk 0:01:06.2]} 19. Ng3 {[%clk
0:01:03.1]} 19... Kxf7 {[%clk 0:01:04.5]} 20. Nf5 {[%clk 0:01:03.8]} 20... h5
{[%clk 0:00:59.7]} 21. gxh5 {[%clk 0:01:00.9]} 21... Bd4 {[%clk 0:00:52.8]} 22.
h6 {[%clk 0:00:58.9]} 22... Rhg8+ {[%clk 0:00:45.9]} 23. Kf3 {[%clk 0:00:57.2]}
23... b5 {[%clk 0:00:39.8]} 24. Rd2 {[%clk 0:00:51.2]} 24... b4 {[%clk
0:00:36.2]} 25. h4 {[%clk 0:00:32.6]} 25... c5 {[%clk 0:00:36.4]} 26. h5 {[%clk
0:00:32.1]} 26... a5 {[%clk 0:00:36.5]} 27. Rh1 {[%clk 0:00:27.2]} 27... Rg5
{[%clk 0:00:34.4]} 28. Rg2 {[%clk 0:00:22.4]} 28... Rxg2 {[%clk 0:00:29]} 29.
Kxg2 {[%clk 0:00:23.3]} 29... Kg8 {[%clk 0:00:29.5]} 30. Rh3 {[%clk 0:00:13.6]}
30... Kh8 {[%clk 0:00:23.4]} 31. Rg3 {[%clk 0:00:07.9]} 31... Rg8 {[%clk
0:00:23.1]} 32. Rg7 {[%clk 0:00:08.5]} 32... a4 {[%clk 0:00:23.2]} 33. Kf3
{[%clk 0:00:08.4]} 33... a3 {[%clk 0:00:23.1]} 34. Rc7 {[%clk 0:00:04.3]} 34...
Rg1 {[%clk 0:00:21.7]} 35. Ne7 {[%clk 0:00:04.2]} 35... Kh7 {[%clk 0:00:16.3]}
36. Nf5+ {[%clk 0:00:03.4]} 36... Kh8 {[%clk 0:00:16.6]} 37. Rc8+ {[%clk
0:00:02.5]} 37... Rg8 {[%clk 0:00:16.6]} 38. Rc6 {[%clk 0:00:02.5]} 38... Rf8
{[%clk 0:00:16.2]} 39. Rc7 {[%clk 0:00:02.8]} 39... Rg8 {[%clk 0:00:15.7]} 40.
Ne7 {[%clk 0:00:03.2]} 40... Kh7 {[%clk 0:00:06.2]} 41. Nxg8+ {[%clk 0:00:02.9]}
41... Kxg8 {[%clk 0:00:06.6]} 42. h7+ {[%clk 0:00:03.6]} 42... Kh8 {[%clk
0:00:06.8]} 43. Kg4 {[%clk 0:00:04.3]} 43... c4 {[%clk 0:00:07]} 44. Kf5 {[%clk
0:00:05]} 44... b3 {[%clk 0:00:07.3]} 45. Kg6 {[%clk 0:00:05.7]} 45... Bb6
{[%clk 0:00:06.6]} 46. Rc8+ {[%clk 0:00:06.2]} 46... Bd8 {[%clk 0:00:07]} 47.
Rxd8# {[%clk 0:00:06.9]} 1-0